bitfinex/quotes_SOLUSD_20251231
["timestamp","ask_amount","ask_price","bid_price","bid_amount"]
[1767144917653,0.59,125.94,125.9,7.94242943]
[1767144917840,4.4957071,125.94,125.91,0.7]
[1767144924656,0.59,125.94,125.91,0.7]
[1767144924957,4.4957071,125.94,125.91,0.7]
[1767144926253,0.59,125.91,125.88,0.7]
[1767144926440,3.9057071,125.91,125.88,0.7]
[1767144926646,4.4957071,125.92,125.88,0.7]
[1767144927459,4.4957071,125.92,125.88,3.9057071]
[1767144927661,4.4957071,125.92,125.89,0.7]
[1767144928253,0.59,125.92,125.89,0.7]
[1767144928554,4.4957071,125.92,125.89,0.7]
[1767144930954,0.59,125.92,125.89,8.64340401]
[1767144931148,14.5,125.94,125.89,11.84911111]
[1767144931149,3.9057071,125.94,125.89,11.84911111]
[1767144931352,19.945257,125.98,125.89,11.84911111]
[1767144931353,0.69,125.98,125.94,0.7]
[1767144931546,0.1,125.98,125.95,0.7]
[1767144933164,4.5957071,125.98,125.95,0.7]
[1767144933350,4.5957071,125.98,125.95,8.6395746]
[1767144934963,4.5957071,125.98,125.95,0.7]
[1767144935157,4.4957071,125.97,125.93,7.94087232]
[1767144935364,4.4957071,125.97,125.93,8.64087232]
[1767144935658,4.4957071,125.97,125.93,12.54657942]
[1767144936239,4.4957071,125.97,125.94,8.64005567]
[1767144937059,0.59,125.97,125.94,8.64005567]
[1767144937263,19.0957071,125.98,125.94,8.64005567]
[1767144938237,15.19,125.98,125.94,8.64005567]
[1767144938552,4.5957071,125.98,125.94,8.64005567]
[1767144939138,4.5957071,125.98,125.94,0.7]
[1767144939543,4.5957071,125.98,125.94,8.64022754]
[1767144940955,4.5957071,125.98,125.95,0.7]
[1767144941555,4.5957071,125.98,125.94,8.64022754]
[1767144943262,4.5957071,125.98,125.95,0.7]
[1767144945670,3.9057071,125.97,125.95,0.7]
[1767144946059,4.4957071,125.97,125.94,0.7]
[1767144947758,0.1,125.98,125.94,8.62020002]
[1767144947958,6.53092661,125.97,125.94,8.62020002]
[1767144948158,0.59,125.97,125.94,8.62020002]
[1767144948363,4.4957071,125.97,125.94,8.62020002]
[1767144948666,0.59,125.97,125.94,8.62020002]
[1767144948864,4.4957071,125.97,125.94,8.62020002]
[1767144949169,4.5957071,125.98,125.95,0.68]
[1767144950457,4.5957071,125.98,125.95,8.61963087]
[1767144953270,4.0057071,125.98,125.94,7.94028902]
[1767144953476,0.59,125.97,125.94,8.62028902]
[1767144953679,4.4957071,125.97,125.94,8.62028902]
[1767144954672,4.4957071,125.96,125.92,8.62110544]
[1767144954854,4.4957071,125.96,125.93,0.68]
[1767144955059,3.9057071,125.95,125.93,0.68]
[1767144959277,4.4957071,125.95,125.92,8.62110544]
[1767144959482,3.9057071,125.96,125.94,0.68]
[1767144959669,3.9057071,125.96,125.94,0.65]
[1767144962079,3.9057071,125.97,125.94,0.65]
[1767144962280,0.1,125.98,125.95,3.9057071]
[1767144962480,4.0057071,125.98,125.94,31.69650782]
[1767144962678,4.0057071,125.98,125.95,0.72]
[1767144963080,4.6257071,125.98,125.95,0.72]
[1767144963277,0.62,125.97,125.94,8.66007816]
[1767144963469,4.5257071,125.97,125.94,8.66007816]
[1767144966382,3.9057071,125.97,125.94,8.66007816]
[1767144966590,3.9057071,125.97,125.95,0.72]
[1767144967967,4.5257071,125.97,125.94,0.72]
[1767144968169,4.5257071,125.97,125.94,8.66018345]
[1767144974671,3.11953056,125.97,125.94,8.66018345]
[1767144975278,5.95328901,125.96,125.94,8.66018345]
[1767144975468,3.11953056,125.97,125.94,8.66018345]
[1767144975665,5.95329059,125.96,125.94,8.66018345]
[1767144975864,3.11953056,125.97,125.94,8.66018345]
[1767144976075,5.95328901,125.96,125.94,8.66018345]
[1767144976272,3.11953056,125.97,125.94,8.66018345]
[1767144976478,5.95739509,125.96,125.94,8.66018345]
[1767144976776,3.11953056,125.97,125.94,8.66018345]
[1767144976971,5.95739509,125.96,125.95,0.65]
[1767144977890,17.71953056,125.98,125.95,8.58965859]
[1767144981087,2.49953056,125.97,125.95,8.58965859]
[1767144983999,15.22,125.98,125.95,8.58965859]
[1767144984199,2.49953056,125.97,125.95,8.58965859]
[1767144984592,17.71953056,125.98,125.95,8.58965859]
[1767144984793,17.71953056,125.98,125.95,0.65]
[1767144985105,17.71953056,125.98,125.95,8.58965516]
[1767144985705,3.11953056,125.97,125.94,7.93999704]
[1767144985904,2.49953056,125.97,125.95,0.65]
[1767144986497,2.49953056,125.97,125.93,19.85180019]
[1767144987197,3.21953056,125.96,125.86,2.49953056]
[1767144987386,2.49953056,125.95,125.9,2.49953056]
[1767144987589,2.49953056,125.95,125.92,7.9413873]
[1767144988091,3.21953056,125.96,125.92,7.9413873]
[1767144988482,2.49953056,125.96,125.93,0.65]
[1767144989003,3.21953056,125.97,125.93,7.94077974]
[1767144989184,17.71953056,125.97,125.94,0.65]
[1767144989589,8.03790619,125.98,125.93,7.94077974]
[1767144989784,5.95657174,125.97,125.95,0.65]
[1767144989997,0.1,125.98,125.95,0.65]
[1767144990204,5.95656012,125.97,125.95,0.65]
[1767144990408,0.1,125.98,125.95,0.65]
[1767144991403,0.1,125.98,125.94,10.43958893]
[1767144991404,0.82,125.98,125.94,0.65]
[1767144991617,0.72,125.96,125.93,8.590751]
[1767144991791,0.72,125.96,125.93,0.65]
[1767144992516,0.72,125.96,125.93,8.59091314]
[1767144993092,3.31953056,125.98,125.94,0.65]
[1767144993289,5.95601811,125.97,125.94,0.65]
[1767144993512,3.31953056,125.98,125.94,0.65]
[1767144993711,5.95598612,125.97,125.94,8.59025035]
[1767144993923,3.31953056,125.98,125.94,8.59025035]
[1767144994125,5.9559877,125.97,125.94,8.59025035]
[1767144994325,3.31953056,125.98,125.94,8.59025035]
[1767144994535,5.95596361,125.97,125.94,8.59025035]
[1767144994709,3.31953056,125.98,125.94,8.59025035]
[1767144994909,5.95596361,125.97,125.94,8.59025035]
[1767144995114,0.72,125.97,125.94,8.59025035]
[1767144999016,2.49953056,125.97,125.92,7.94097699]
[1767144999217,6.67631297,125.96,125.93,0.65]
[1767144999525,0.72,125.96,125.93,8.59090585]
[1767144999918,2.49953056,125.97,125.95,0.65]
[1767145000332,0.1,125.98,125.95,0.65]
[1767145001542,0.1,125.98,125.95,8.58964973]
[1767145001848,0.1,125.98,125.96,0.65]
[1767145006055,2.59953056,125.98,125.96,0.65]
[1767145006360,0.1,125.98,125.96,0.65]
[1767145007752,0.1,125.98,125.96,7.93901998]
[1767145007928,1.1,126.0,125.97,0.66]
[1767145008132,5.95565126,125.99,125.97,0.66]
[1767145008361,4.51565126,125.98,125.97,0.66]
[1767145010236,4.51565126,125.98,125.96,7.93901998]
[1767145010436,3.15953056,125.99,125.96,8.02901998]
[1767145010657,0.66,125.99,125.96,8.02901998]
[1767145011366,0.66,125.99,125.96,7.93901998]
[1767145011660,3.15953056,125.99,125.96,8.02901998]
[1767145011883,0.66,125.99,125.96,8.02901998]
[1767145012542,3.15953056,125.99,125.96,0.09]
[1767145012753,3.15953056,125.99,125.95,8.02952584]
[1767145013145,2.49953056,125.99,125.95,8.02952584]
[1767145013460,3.15953056,125.98,125.95,8.02952584]
[1767145014467,0.66,125.98,125.95,8.02952584]
[1767145016569,3.59953056,126.0,125.96,0.09]
[1767145016868,0.66,125.99,125.96,0.09]
[1767145017072,1.76,126.0,125.97,0.09]
[1767145017360,0.66,125.99,125.96,0.09]
[1767145018744,0.66,125.99,125.96,8.02902826]
[1767145020251,0.66,125.99,125.96,10.52855882]
[1767145020864,1.79,126.0,125.97,0.09]
[1767145021164,5.95367564,125.99,125.97,0.09]
[1767145021458,0.69,125.99,125.96,10.52855882]
[1767145022674,1.79,126.0,125.96,10.43855882]
[1767145022844,5.95351358,125.99,125.97,0.09]
[1767145023046,1.79,126.0,125.97,0.09]
[1767145023245,5.95351358,125.99,125.97,0.09]
[1767145023445,1.79,126.0,125.97,0.09]
[1767145023661,5.95337194,125.99,125.97,0.09]
[1767145023846,1.79,126.0,125.97,0.09]
[1767145024045,5.953294,125.99,125.97,0.09]
[1767145024247,4.28953056,126.0,125.97,0.09]
[1767145024463,5.95304774,125.99,125.97,0.09]
[1767145024667,1.79,126.0,125.97,0.09]
[1767145024864,5.95304616,125.99,125.97,0.09]
[1767145025047,1.79,126.0,125.96,2.58953056]
[1767145025246,5.95304774,125.99,125.96,2.58953056]
[1767145025462,1.79,126.0,125.96,2.58953056]
[1767145025672,5.95291875,125.99,125.97,0.09]
[1767145025854,1.79,126.0,125.97,8.02839803]
[1767145026054,5.95291717,125.99,125.97,8.02839803]
[1767145026256,1.79,126.0,125.97,10.52792859]
[1767145027956,1.79,126.0,125.97,8.02839803]
[1767145028353,4.28953056,126.0,125.97,8.02839803]
[1767145029250,1.79,126.0,125.97,8.02839803]
[1767145030266,1.79,126.0,125.97,0.09]
[1767145031166,3.59953056,126.0,125.95,19.8481836]
[1767145031369,0.69,125.99,125.96,0.09]
[1767145038648,3.90364968,125.99,125.95,27.78784219]
[1767145038852,0.7,125.97,125.95,7.93965859]
[1767145040858,0.7,125.97,125.94,0.09]
[1767145042379,0.7,125.97,125.95,7.93965859]
[1767145044953,0.7,125.97,125.94,8.02999413]
[1767145045152,3.90364968,125.97,125.94,7.93999413]
[1767145045479,0.7,125.95,125.94,7.93999413]
[1767145045877,14.5,125.99,125.94,7.93999413]
[1767145046082,4.60364968,125.97,125.94,7.93999413]
[1767145046277,0.7,125.96,125.94,7.93999413]
[1767145046778,0.7,125.96,125.93,0.09]
[1767145046956,4.60364968,125.96,125.93,0.09]
[1767145047870,0.7,125.96,125.93,0.09]
[1767145048657,0.7,125.96,125.93,8.03091955]
[1767145049679,0.7,125.96,125.91,0.09]
[1767145049887,0.7,125.95,125.91,3.99364968]
[1767145050271,4.60364968,125.96,125.92,3.99364968]
[1767145050593,0.7,125.96,125.93,0.09]
[1767145050968,0.7,125.96,125.92,3.99364968]
[1767145051572,0.7,125.99,125.94,3.99364968]
[1767145051776,0.7,125.97,125.94,11.93355624]
[1767145052156,0.7,125.97,125.94,8.02990656]
[1767145052359,0.7,125.97,125.94,11.93355624]
[1767145052574,0.7,125.97,125.94,8.02990656]
[1767145052773,0.7,125.97,125.94,11.93355624]
[1767145054181,0.7,125.97,125.94,0.09]
[1767145054478,0.7,125.98,125.95,0.09]
[1767145054671,0.7,125.98,125.95,3.99364968]
[1767145055583,0.7,125.99,125.96,0.09]
[1767145055878,0.7,125.99,125.95,11.93285116]
[1767145060006,0.7,125.98,125.95,3.99364968]
[1767145060803,0.7,125.98,125.95,0.09]
[1767145061004,0.7,125.98,125.95,8.02965859]
[1767145061182,0.7,125.98,125.95,11.93330827]
[1767145064879,0.7,125.98,125.95,3.99364968]
[1767145066901,0.7,125.98,125.95,11.93293155]
[1767145070198,0.7,125.98,125.95,11.84293155]
[1767145070395,0.69,125.97,125.94,7.94002505]
[1767145071278,0.69,125.96,125.92,11.84494172]
[1767145071588,0.69,125.95,125.92,7.94129204]
[1767145072000,0.69,125.95,125.93,7.94084773]
[1767145075487,0.69,125.95,125.92,3.99364968]
[1767145075688,0.69,125.95,125.92,0.09]
[1767145075889,0.69,125.95,125.92,3.99364968]
[1767145077008,0.69,125.95,125.9,7.94281175]
[1767145077197,0.69,125.94,125.9,11.93646143]
[1767145077393,0.69,125.94,125.9,11.84646143]
[1767145077598,0.69,125.94,125.91,0.09]
[1767145077786,0.69,125.94,125.9,11.93646143]
[1767145078205,0.69,125.94,125.9,8.03281175]
[1767145078510,0.69,125.94,125.9,11.93646143]
[1767145080709,3.90364968,125.96,125.91,3.90364968]
[1767145080894,0.72,125.96,125.92,3.99364968]
[1767145082210,0.72,125.96,125.92,0.09]
[1767145082390,0.72,125.96,125.92,3.99364968]
[1767145083795,0.72,125.99,125.95,0.09]
[1767145084000,5.94633557,125.98,125.94,3.90364968]
[1767145084207,0.72,125.97,125.94,7.94028902]
[1767145084989,0.72,125.96,125.94,7.94028902]
[1767145086311,0.72,125.96,125.93,7.94091955]
[1767145086715,4.62364968,125.95,125.92,7.94129811]
[1767145086917,0.72,125.94,125.92,7.94129811]
[1767145087908,0.72,125.95,125.92,3.99364968]
[1767145088113,0.72,125.95,125.92,3.90364968]
[1767145088306,0.72,125.95,125.91,23.84858111]
[1767145088913,0.72,125.95,125.93,7.94091955]
[1767145093013,3.90364968,125.97,125.93,7.94091955]
[1767145093318,0.72,125.96,125.93,7.94091955]
[1767145093708,0.72,125.96,125.93,11.84456923]
[1767145095422,3.90364968,125.99,125.94,3.90364968]
[1767145095619,3.90364968,125.97,125.93,8.65091955]
[1767145096005,3.90364968,125.98,125.93,12.55456923]
[1767145097724,0.69,125.97,125.93,12.55456923]
[1767145098525,0.69,125.97,125.93,11.15030265]
[1767145098725,0.69,125.97,125.93,31.00260154]
[1767145099509,0.69,125.97,125.93,28.50321844]
[1767145099720,0.69,125.97,125.93,31.00260154]
[1767145100597,0.69,125.97,125.93,27.79321844]
[1767145100803,0.69,125.97,125.94,0.69]
[1767145101827,0.69,125.97,125.94,8.63001958]
[1767145102527,0.69,125.97,125.94,7.94001958]
[1767145104814,0.69,125.96,125.94,7.94001958]
[1767145110304,0.69,125.96,125.89,48.06735181]
[1767145110305,0.69,125.94,125.89,0.69]
[1767145110511,2.4993831,125.93,125.89,0.69]
[1767145110934,2.4993831,125.93,125.9,0.69]
[1767145111229,2.46925033,125.93,125.9,0.69]
[1767145111421,2.4993831,125.94,125.91,7.94218092]
[1767145111611,2.4993831,125.93,125.91,7.94218092]
[1767145112119,2.4993831,125.94,125.91,7.94218092]
[1767145112521,3.1893831,125.94,125.91,7.94218092]
[1767145114432,2.4993831,125.94,125.91,7.94218092]
[1767145114640,0.69,125.93,125.91,7.94218092]
[1767145114928,0.69,125.93,125.91,8.63218092]
[1767145118540,0.69,125.91,125.83,39.93456658]
[1767145118715,2.4993831,125.84,125.8,0.2]
[1767145118921,0.69,125.81,125.79,0.2]
[1767145124438,0.69,125.85,125.81,0.69]
[1767145124643,0.69,125.85,125.82,2.4993831]
[1767145128750,0.69,125.85,125.81,11.13728908]
[1767145130043,17.0193831,125.86,125.8,7.94906451]
[1767145130044,0.69,125.82,125.8,7.94906451]
[1767145130628,2.4993831,125.83,125.8,8.60906451]
[1767145130838,17.7093831,125.84,125.8,8.60906451]
[1767145131222,0.69,125.83,125.8,11.10844761]
[1767145131942,14.52,125.84,125.8,3.1593831]
[1767145132150,15.21,125.84,125.8,11.10811507]
[1767145135155,0.69,125.83,125.8,10.44811507]
[1767145135953,0.69,125.83,125.8,11.10811507]
[1767145136630,2.4993831,125.83,125.79,0.2]
[1767145136834,0.69,125.82,125.79,0.2]
[1767145137556,0.69,125.82,125.79,0.86]
[1767145139240,0.69,125.82,125.79,8.80974796]
[1767145141256,0.69,125.82,125.79,8.80970678]
[1767145142653,0.69,125.82,125.79,0.2]
[1767145142859,0.67,125.81,125.79,0.2]
[1767145146860,0.67,125.8,125.79,0.2]
[1767145148060,3.1693831,125.8,125.79,0.2]
[1767145148355,0.67,125.79,125.76,0.2]
[1767145148557,3.1693831,125.78,125.76,0.2]
[1767145149149,0.67,125.78,125.76,0.2]
[1767145149858,17.0193831,125.79,125.76,0.2]
[1767145150058,17.6893831,125.79,125.76,0.86]
[1767145150444,0.67,125.8,125.77,0.66]
[1767145150843,3.1693831,125.8,125.77,0.66]
[1767145151556,3.1693831,125.79,125.76,8.15158187]
[1767145151858,14.52,125.81,125.76,0.2]
[1767145151859,3.1693831,125.78,125.76,0.2]
[1767145152257,0.67,125.78,125.76,0.2]
[1767145153455,3.1693831,125.78,125.76,0.2]
[1767145154645,2.4993831,125.77,125.76,0.2]
[1767145154850,3.1693831,125.77,125.74,0.66]
[1767145155463,0.67,125.77,125.74,8.61282402]
[1767145155652,0.67,125.84,125.76,2.4993831]
[1767145155855,0.67,125.81,125.77,3.1593831]
[1767145156053,0.67,125.81,125.78,0.66]
[1767145156562,3.2193831,125.8,125.76,0.72]
[1767145156761,0.72,125.8,125.76,0.72]
[1767145156968,0.72,125.8,125.77,0.72]
[1767145157565,3.2193831,125.8,125.77,0.72]
[1767145158184,14.52,125.8,125.74,7.95291872]
[1767145158475,14.52,125.8,125.74,8.67291872]
[1767145158476,4.63837495,125.77,125.74,8.67291872]
[1767145158671,0.72,125.76,125.73,8.8732914]
[1767145159061,0.72,125.76,125.74,7.95281739]
[1767145159263,19.15837495,125.77,125.74,7.95281739]
[1767145159575,19.15837495,125.79,125.75,0.72]
[1767145159758,0.72,125.79,125.76,4.63837495]
[1767145160278,14.52,125.8,125.77,0.72]
[1767145160470,4.63837495,125.81,125.77,0.72]
[1767145160771,5.91770041,125.8,125.77,0.72]
[1767145160974,18.43837495,125.81,125.77,0.72]
[1767145161179,6.64382477,125.8,125.77,0.72]
[1767145161378,0.72,125.8,125.77,0.72]
[1767145162380,4.63837495,125.8,125.77,0.72]
[1767145163078,5.94280105,125.79,125.77,0.72]
[1767145163253,4.63837495,125.8,125.77,0.72]
[1767145163578,5.94290603,125.79,125.77,0.72]
[1767145163782,4.63837495,125.8,125.77,0.72]
[1767145163983,5.94290603,125.79,125.77,0.72]
[1767145164180,4.63837495,125.8,125.77,8.67090315]
[1767145164369,5.94268081,125.79,125.77,8.67090315]
[1767145164572,4.63837495,125.8,125.77,8.67090315]
[1767145164767,5.94268239,125.79,125.77,8.67090315]
[1767145164970,0.72,125.8,125.77,8.67090315]
[1767145165180,5.94267831,125.79,125.77,8.67090315]
[1767145165482,0.72,125.8,125.77,8.67090315]
[1767145165686,5.94246823,125.79,125.77,8.67090315]
[1767145165892,0.72,125.8,125.77,8.67090315]
[1767145166184,5.94246981,125.79,125.77,8.67090315]
[1767145166483,0.72,125.8,125.77,8.67090315]
[1767145166675,5.9422858,125.79,125.77,8.67090315]
[1767145166871,0.72,125.8,125.77,8.67090315]
[1767145167581,5.94218823,125.79,125.77,8.67090315]
[1767145167786,4.63837495,125.8,125.77,8.67090315]
[1767145168076,4.63837495,125.83,125.79,0.72]
[1767145168279,0.72,125.83,125.79,0.72]
[1767145168587,0.72,125.82,125.79,0.72]
[1767145168785,4.63837495,125.82,125.79,0.72]
[1767145168986,0.72,125.82,125.79,0.72]
[1767145169691,0.72,125.82,125.79,8.66973273]
[1767145175570,0.72,125.84,125.8,0.72]
[1767145175770,0.72,125.82,125.78,8.67006484]
[1767145175972,0.72,125.82,125.79,0.72]
[1767145176182,0.72,125.82,125.79,8.66971709]
[1767145176991,0.72,125.82,125.79,0.72]
[1767145177290,0.72,125.82,125.78,8.67010796]
[1767145179694,0.72,125.82,125.78,12.58848291]
[1767145180590,0.72,125.82,125.78,8.67010796]
[1767145180797,0.72,125.82,125.79,0.72]
[1767145181974,3.91837495,125.83,125.76,12.58973508]
[1767145181975,0.72,125.8,125.76,12.58973508]
[1767145182184,0.72,125.8,125.77,0.72]
[1767145182769,0.72,125.8,125.77,8.6708513]
[1767145183186,0.72,125.8,125.77,12.58922625]
[1767145183694,0.72,125.81,125.78,0.72]
[1767145184208,0.72,125.81,125.79,0.72]
[1767145185973,14.52,125.82,125.79,8.66969564]
[1767145186178,0.72,125.83,125.79,8.66969564]
[1767145186398,0.71,125.82,125.79,8.66969564]
[1767145188808,0.71,125.83,125.8,0.71]
[1767145190630,3.91837495,125.82,125.79,0.71]
[1767145190793,0.71,125.81,125.78,8.66026447]
[1767145192909,0.71,125.82,125.79,0.71]
[1767145193808,0.71,125.79,125.75,0.71]
[1767145194022,0.71,125.78,125.75,0.71]
[1767145194506,4.62837495,125.78,125.74,7.95291872]
[1767145194719,0.71,125.77,125.74,8.66291872]
[1767145194889,4.62837495,125.78,125.75,0.71]
[1767145195516,0.71,125.79,125.75,3.91837495]
[1767145195703,0.71,125.79,125.76,0.71]
[1767145195905,0.71,125.79,125.76,8.6614856]
[1767145198719,19.14837495,125.8,125.77,0.71]
[1767145198922,15.23,125.8,125.77,0.71]
[1767145200116,14.52,125.8,125.77,0.71]
[1767145200609,14.52,125.8,125.78,0.69]
[1767145200794,0.71,125.81,125.78,0.69]
[1767145200993,5.95401218,125.8,125.78,0.69]
[1767145201209,0.71,125.81,125.77,7.9509296]
[1767145201509,0.71,125.8,125.77,8.6409296]
[1767145201808,0.71,125.84,125.8,0.69]
[1767145202015,0.71,125.84,125.81,0.69]
[1767145202396,0.71,125.84,125.81,4.60837495]
[1767145203009,0.71,125.85,125.82,0.69]
[1767145203402,0.71,125.85,125.82,8.63756129]
[1767145206917,0.71,125.83,125.8,8.63861039]
[1767145207821,0.71,125.83,125.81,7.94845971]
[1767145208922,0.71,125.84,125.81,0.69]
[1767145209822,0.71,125.84,125.81,4.60837495]
[1767145209998,0.71,125.84,125.8,31.74031453]
[1767145210325,0.71,125.84,125.8,12.55750054]
[1767145213227,0.71,125.84,125.8,8.63912559]
[1767145213430,0.71,125.84,125.8,12.55750054]
[1767145214038,0.71,125.84,125.81,8.63839733]
[1767145215229,14.52,125.85,125.83,0.69]
[1767145215618,0.71,125.87,125.84,0.69]
[1767145215819,4.62837495,125.87,125.84,0.69]
[1767145216026,0.71,125.86,125.83,0.69]
[1767145216533,0.71,125.87,125.84,4.60837495]
[1767145216717,14.52,125.88,125.86,0.69]
[1767145217316,14.52,125.88,125.86,8.63528118]
[1767145217910,14.52,125.88,125.86,0.69]
[1767145218112,15.23,125.88,125.85,12.55407391]
[1767145218520,0.71,125.87,125.84,8.63636351]
[1767145227635,0.71,125.84,125.81,0.69]
[1767145227837,0.71,125.83,125.8,0.69]
[1767145228026,3.21334407,125.83,125.8,0.69]
[1767145228430,0.71,125.83,125.8,0.69]
[1767145228628,0.71,125.84,125.8,0.69]
[1767145229242,3.21334407,125.84,125.8,0.69]
[1767145229818,0.71,125.84,125.8,10.45200823]
[1767145230017,0.71,125.84,125.81,0.69]
[1767145231931,15.23,125.85,125.82,0.69]
[1767145232746,0.71,125.85,125.82,0.69]
[1767145236346,0.71,125.86,125.83,0.69]
[1767145236644,17.73334407,125.87,125.83,0.69]
[1767145237227,0.71,125.86,125.83,0.69]
[1767145238547,3.21334407,125.86,125.83,0.69]
[1767145241628,0.71,125.86,125.83,0.69]
[1767145241835,3.21334407,125.86,125.83,0.69]
[1767145242637,0.71,125.86,125.83,0.69]
[1767145242838,3.21334407,125.86,125.83,0.69]
[1767145244535,0.71,125.86,125.83,0.69]
[1767145250352,2.50334407,125.86,125.81,7.94806445]
[1767145250554,0.67,125.83,125.81,0.71]
[1767145259467,0.67,125.83,125.81,8.65841498]
[1767145259757,15.19,125.84,125.81,8.65841498]
[1767145260066,17.69334407,125.84,125.81,8.65841498]
[1767145261062,15.19,125.84,125.81,8.65841498]
[1767145261259,17.02334407,125.84,125.82,0.71]
[1767145262658,17.72334407,125.84,125.81,7.94841498]
[1767145262848,17.72334407,125.84,125.81,8.65841498]
[1767145263564,2.50334407,125.83,125.81,8.65841498]
[1767145268671,0.7,125.83,125.79,20.58387053]
[1767145268864,3.20334407,125.82,125.8,0.71]
[1767145269054,2.50334407,125.82,125.8,8.65883255]
[1767145269254,2.50334407,125.82,125.8,7.94883255]
[1767145269463,0.7,125.81,125.8,7.94883255]
[1767145269853,0.6706632,125.81,125.8,7.94883255]
[1767145270844,2.50334407,125.82,125.8,7.94883255]
[1767145271875,3.20334407,125.82,125.8,7.94883255]
[1767145273074,0.7,125.81,125.8,7.94883255]
[1767145273773,0.67078383,125.81,125.8,7.94883255]
[1767145273973,2.50334407,125.82,125.8,7.94883255]
[1767145274171,14.52,125.83,125.8,7.94883255]
[1767145274376,14.52,125.83,125.81,0.71]
[1767145275777,14.52,125.83,125.81,8.6581453]
[1767145275980,3.20334407,125.84,125.81,8.6581453]
[1767145282687,4.61379222,125.84,125.81,8.6581453]
[1767145282868,0.7,125.84,125.81,8.6581453]
[1767145283078,4.61379222,125.84,125.81,8.6581453]
[1767145289394,0.7,125.84,125.81,8.6581453]
[1767145289571,0.7,125.84,125.81,7.9481453]
[1767145289769,4.61379222,125.84,125.82,0.67]
[1767145290292,4.61379222,125.84,125.81,8.6181453]
[1767145292487,14.63142135,125.88,125.82,0.67]
[1767145292488,0.69,125.87,125.82,0.67]
[1767145292689,12.016686,125.86,125.82,0.67]
[1767145292880,0.69,125.86,125.83,0.67]
[1767145293188,19.12379222,125.87,125.83,0.67]
[1767145294200,19.12379222,125.87,125.84,8.61659885]
[1767145295180,14.52,125.87,125.85,0.67]
[1767145295376,15.21,125.87,125.84,8.61659885]
[1767145295596,15.21,125.87,125.85,7.94568203]
[1767145296101,0.69,125.87,125.85,7.94568203]
[1767145296401,4.60379222,125.87,125.85,7.94568203]
[1767145300898,0.69,125.87,125.85,7.94568203]
[1767145301094,4.60379222,125.87,125.85,7.94568203]
[1767145301490,0.69,125.87,125.85,7.94568203]
[1767145301702,4.60379222,125.87,125.85,7.94568203]
[1767145302108,14.52,125.88,125.83,20.53717064]
[1767145302109,3.91379222,125.86,125.83,20.53717064]
[1767145302305,3.91379222,125.85,125.83,20.53717064]
[1767145302508,0.69,125.86,125.83,20.53717064]
[1767145302812,3.91379222,125.85,125.83,20.53717064]
[1767145303190,0.69,125.86,125.83,20.53717064]
[1767145303395,0.69,125.86,125.84,7.94659885]
[1767145303711,3.91379222,125.85,125.84,7.94659885]
[1767145304211,0.69,125.86,125.84,7.94659885]
[1767145304625,14.52,125.88,125.82,0.67]
[1767145304929,3.91379222,125.85,125.82,0.67]
[1767145305799,3.91379222,125.86,125.82,0.67]
[1767145306594,4.60379222,125.87,125.83,0.68]
[1767145306794,4.60379222,125.87,125.84,8.62659885]
[1767145308919,3.91379222,125.86,125.84,8.62659885]
[1767145309923,4.63379222,125.86,125.84,7.94659885]
[1767145311830,0.72,125.86,125.84,7.94659885]
[1767145313632,19.15379222,125.87,125.85,0.68]
[1767145313808,19.15379222,125.87,125.84,8.62659885]
[1767145314121,0.72,125.86,125.84,8.62659885]
[1767145314626,4.63379222,125.87,125.84,8.62659885]